fUST/lending_fUST_20251222
["ID","MTS","AMOUNT","RATE_DAILY","PERIOD"]
[399442650,1766359180921,-10000.01,7.608e-05,2]
[399442651,1766359181070,-10000.01,7.608e-05,2]
[399442652,1766359181458,-184.68968083,7.608e-05,2]
[399442653,1766359183974,-451.47365391,7.608e-05,2]
[399442654,1766359201712,-5000.0,7.531e-05,2]
[399442655,1766359201755,-0.01,7.607e-05,2]
[399442656,1766359201906,-539.77338556,7.607e-05,2]
[399442657,1766359201940,-257.18022174,7.607e-05,2]
[399442658,1766359201978,-326.71889246,7.607e-05,2]
[399442659,1766359202012,-300.0,7.607e-05,2]
[399442660,1766359202102,-7152.66500048,7.608e-05,2]
[399442661,1766359227680,-563.17556852,7.085e-05,2]
[399442662,1766359227737,-1013.71602333,7.32e-05,2]
[399442663,1766359227800,-1846.2268163,7.457e-05,2]
[399442664,1766359227888,-3153.7731837,7.457e-05,2]
[399442665,1766359228110,-154.05336445,7.532e-05,2]
[399442666,1766359232799,-238.01316205,7.556e-05,2]
[399442667,1766359234342,-307.55956557,7.556e-05,2]
[399442668,1766359237387,-242.81977826,7.556e-05,2]
[399442669,1766359237420,5000.0,7.532e-05,2]
[399442670,1766359239914,-313.91690773,7.556e-05,2]
[399442671,1766359242226,-287.10778875,7.556e-05,2]
[399442672,1766359245179,-186.63,7.556e-05,2]
[399442673,1766359250158,-226.1146169,7.556e-05,2]
[399442674,1766359253217,1075.14261048,7.556e-05,2]
[399442675,1766359261700,5000.0,7.556e-05,2]
[399442676,1766359270405,-300.0,7.605e-05,2]
[399442677,1766359270438,-275.0,7.605e-05,2]
[399442678,1766359270473,-500.0,7.606e-05,2]
[399442679,1766359270508,-500.0,7.606e-05,2]
[399442680,1766359270541,-500.0,7.606e-05,2]
[399442681,1766359270572,-500.0,7.606e-05,2]
[399442682,1766359270605,-556.53585511,7.606e-05,2]
[399442683,1766359270637,-500.0,7.606e-05,2]
[399442684,1766359270669,-500.0,7.606e-05,2]
[399442685,1766359270704,-500.0,7.606e-05,2]
[399442686,1766359270736,-236.93828978,7.606e-05,2]
[399442687,1766359270914,-263.06171022,7.606e-05,2]
[399442688,1766359270948,-500.0,7.606e-05,2]
[399442689,1766359270980,-197.28870018,7.606e-05,2]
[399442690,1766359271013,-317.33074178,7.606e-05,2]
[399442691,1766359271065,-307.55956557,7.606e-05,2]
[399442692,1766359271100,-242.81977826,7.606e-05,2]
[399442693,1766359271134,-173.28110754,7.606e-05,2]
[399442694,1766359279110,-438.24838184,7.607e-05,2]
[399442695,1766359280956,-288.01382941,7.607e-05,2]
[399442696,1766359283329,-284.39050535,7.607e-05,2]
[399442697,1766359284807,5000.0,7.606e-05,2]
[399442698,1766359296136,-189.3472834,7.607e-05,2]
[399442699,1766359297286,-317.24804787,7.608e-05,2]
[399442700,1766359298823,-613.72974229,7.608e-05,2]
[399442701,1766359301162,-182.25682745,7.608e-05,2]
[399442702,1766359302570,-1137.81588629,7.608e-05,2]
[399442703,1766359308204,5000.0,7.607e-05,2]
[399442704,1766359320373,179.07172721,6.849e-05,2]
[399442705,1766359320447,10000.0,0.00032877,60]
[399442706,1766359322219,300.0,7.607e-05,2]
[399442707,1766359322424,322.32910898,7.215e-05,2]
[399442708,1766359323596,-8386.54826355,7.608e-05,2]
[399442709,1766359323614,-10000.01,7.608e-05,2]
[399442710,1766359323631,-10000.01,7.608e-05,2]
[399442711,1766359323648,-10000.01,7.608e-05,2]
[399442712,1766359323696,-10000.01,7.608e-05,2]
[399442713,1766359323724,-10000.01,7.608e-05,2]
[399442714,1766359323839,-10000.01,7.608e-05,2]
[399442715,1766359340374,10000.0,0.00032877,60]
[399442716,1766359345620,-5000.0,7.532e-05,2]
[399442717,1766359345658,-0.01,7.608e-05,2]
[399442718,1766359346004,-10000.01,7.608e-05,2]
[399442719,1766359346187,-10000.01,7.608e-05,2]
[399442720,1766359350504,10000.0,0.00032877,60]
[399442721,1766359386788,201.0,9e-07,2]
[399442722,1766359388451,201.0,9e-07,2]
[399442723,1766359392034,-5000.0,7.382e-05,2]
[399442724,1766359392076,-0.01,7.457e-05,2]
[399442725,1766359392152,-4555.68377612,7.457e-05,2]
[399442726,1766359415513,-300.0,7.607e-05,2]
[399442727,1766359415944,-1200.0,7.607e-05,2]
[399442728,1766359442389,300.0,7.607e-05,2]
[399442729,1766359445899,488.35203654,7.607e-05,2]
[399442730,1766359465502,500.0,7.607e-05,2]
[399442731,1766359465538,500.0,7.607e-05,2]
[399442732,1766359465573,500.0,7.607e-05,2]
[399442733,1766359465609,500.0,7.607e-05,2]
[399442734,1766359465643,484.43391763,7.607e-05,2]
[399442735,1766359465674,500.0,7.607e-05,2]
[399442736,1766359465704,500.0,7.607e-05,2]
[399442737,1766359465734,500.0,7.607e-05,2]
[399442738,1766359465765,500.0,7.607e-05,2]
[399442739,1766359465804,500.0,7.607e-05,2]
[399442740,1766359465841,500.0,7.607e-05,2]
[399442741,1766359465876,500.0,7.607e-05,2]
[399442742,1766359465907,500.0,7.607e-05,2]
[399442743,1766359465961,500.0,7.607e-05,2]
[399442744,1766359484132,555.14755954,7.607e-05,2]
[399442745,1766359492585,500.0,7.607e-05,2]
[399442746,1766359492618,500.0,7.607e-05,2]
[399442747,1766359492656,500.0,7.607e-05,2]
[399442748,1766359492691,172.07648629,7.607e-05,2]
[399442749,1766359492717,327.92351371,7.607e-05,2]
[399442750,1766359492748,500.0,7.607e-05,2]
[399442751,1766359492816,500.0,7.607e-05,2]
[399442752,1766359492861,391.17682859,7.607e-05,2]
[399442753,1766359492976,500.0,7.607e-05,2]
[399442754,1766359498144,500.0,7.607e-05,2]
[399442755,1766359501227,300.0,7.607e-05,2]
[399442756,1766359501881,231.0,7.607e-05,2]
[399442757,1766359501936,701.56270889,7.345e-05,2]
[399442758,1766359501966,300.0,7.607e-05,2]
[399442759,1766359507793,1200.0,7.607e-05,2]
[399442760,1766359509306,300.0,7.607e-05,2]
[399442761,1766359509350,151.0,7.603e-05,2]
[399442762,1766359509475,159.95154747,7.603e-05,2]
[399442763,1766359514687,574.12855637,7.603e-05,2]
[399442764,1766359517939,500.0,7.603e-05,2]
[399442765,1766359518105,251.92855197,7.603e-05,2]
[399442766,1766359518549,500.0,7.603e-05,2]
[399442767,1766359519702,500.0,7.603e-05,2]
[399442768,1766359519836,500.0,7.603e-05,2]
[399442769,1766359520524,500.0,7.603e-05,2]
[399442770,1766359521135,500.0,7.603e-05,2]
[399442771,1766359521724,111.338293,7.603e-05,2]
[399442772,1766359521752,138.661707,7.603e-05,2]
[399442773,1766359521788,500.0,7.603e-05,2]
[399442774,1766359522402,250.0,7.603e-05,2]
[399442775,1766359522923,500.0,7.603e-05,2]
[399442776,1766359523001,250.0,7.603e-05,2]
[399442777,1766359523600,500.0,7.603e-05,2]
[399442778,1766359523636,250.0,7.603e-05,2]
[399442779,1766359524230,500.0,7.603e-05,2]
[399442780,1766359524282,250.0,7.603e-05,2]
[399442781,1766359524866,453.93245012,7.603e-05,2]
[399442782,1766359524901,250.0,7.603e-05,2]
[399442783,1766359525531,250.0,7.603e-05,2]
[399442784,1766359526207,250.0,7.603e-05,2]
[399442785,1766359526815,250.0,7.603e-05,2]
[399442786,1766359527440,250.0,7.603e-05,2]
[399442787,1766359528516,250.0,7.603e-05,2]
[399442788,1766359530565,547.30678992,6.973e-05,2]
[399442789,1766359531169,985.15222186,7.096e-05,2]
[399442790,1766359533215,1751.38172776,7.22e-05,2]
[399442791,1766359541704,250.0,7.603e-05,2]
[399442792,1766359542308,250.0,7.603e-05,2]
[399442793,1766359542920,250.0,7.603e-05,2]
[399442794,1766359543521,250.0,7.603e-05,2]
[399442795,1766359562213,300.0,7.607e-05,2]
[399442796,1766359605260,323.57510334,7.607e-05,2]
[399442797,1766359605299,4676.42489666,7.607e-05,2]
[399442799,1766359622745,300.0,7.607e-05,2]
[399442800,1766359624782,194.73242848,7e-05,2]
[399442802,1766359626605,350.51837127,7.152e-05,2]
[399442803,1766359628784,623.14377115,7.303e-05,2]
[399442804,1766359628822,3855.19053244,7.607e-05,2]
[399442805,1766359628853,1144.80946756,7.607e-05,2]
[399442807,1766359644879,500.0,7.607e-05,2]
[399442808,1766359644941,276.04821307,7.607e-05,2]
[399442809,1766359651197,5000.0,7.607e-05,2]
[399442810,1766359656125,-323.39067492,7.607e-05,2]
[399442811,1766359656964,-2432.37096953,7.608e-05,2]
[399442812,1766359657004,-10000.01,7.608e-05,2]
[399442813,1766359657132,-2432.39096953,7.608e-05,2]
[399442814,1766359657161,-5135.22806094,7.608e-05,2]
[399442815,1766359683081,499.99,0.00032876,60]
[399442816,1766359683824,-5000.0,7.532e-05,2]
[399442817,1766359683866,-0.01,7.607e-05,2]
[399442818,1766359685112,-299.99,7.607e-05,2]
[399442819,1766359685144,-1505.84617599,7.608e-05,2]
[399442820,1766359688327,1200.0,7.607e-05,2]
[399442821,1766359697391,5000.0,7.608e-05,2]
[399442823,1766359699403,188.33764802,7.607e-05,2]
[399442824,1766359699455,299.57088849,7.607e-05,2]
[399442826,1766359715489,-3312.10146349,7.608e-05,2]
[399442827,1766359715687,-10000.01,7.608e-05,2]
[399442828,1766359718020,174638.90126128,0.00032,60]
[399442832,1766359743837,-5000.0,7.532e-05,2]
[399442833,1766359767832,0.01,7.532e-05,2]
[399442834,1766359767860,4999.99,7.532e-05,2]
[399442835,1766359773447,-246.71556778,7.57e-05,2]
[399442836,1766359784616,247.48699336,7.57e-05,2]
[399442837,1766359792786,5000.0,7.57e-05,2]
[399442838,1766359815644,4752.52300664,7.57e-05,2]
[399442839,1766359815672,247.47699336,7.57e-05,2]
[399442861,1766359831837,-76.26865996,7.57e-05,2]
[399442862,1766359831847,-527.0,7.57e-05,2]
[399442863,1766359831856,-300.0,7.606e-05,2]
[399442864,1766359831865,-300.0,7.606e-05,2]
[399442865,1766359831874,-300.0,7.606e-05,2]
[399442866,1766359831883,-1200.0,7.606e-05,2]
[399442867,1766359831893,-500.0,7.607e-05,2]
[399442868,1766359831902,-500.0,7.607e-05,2]
[399442869,1766359831911,-500.0,7.607e-05,2]
[399442870,1766359831921,-500.0,7.607e-05,2]
[399442871,1766359831935,-500.0,7.607e-05,2]
[399442872,1766359831944,-500.0,7.607e-05,2]
[399442873,1766359831954,-500.0,7.607e-05,2]
[399442874,1766359831963,-500.0,7.607e-05,2]
[399442875,1766359831974,-500.0,7.607e-05,2]
[399442876,1766359831983,-500.0,7.607e-05,2]
[399442877,1766359831992,-259.40358149,7.607e-05,2]
[399442878,1766359832004,-240.59641851,7.607e-05,2]
[399442879,1766359832013,-500.0,7.607e-05,2]
[399442880,1766359832023,-248.34861977,7.607e-05,2]
[399442881,1766359832386,444.40580973,7.001e-05,2]
[399442882,1766359833807,799.93045752,7.154e-05,2]
[399442883,1766359835960,1422.09859114,7.306e-05,2]
[399442891,1766359838518,5000.0,7.57e-05,2]
[399443099,1766359840575,-3e-08,7.607e-05,2]
[399443343,1766359843008,-251.6513802,7.607e-05,2]
[399443345,1766359843017,-500.0,7.607e-05,2]
[399443347,1766359843026,-500.0,7.607e-05,2]
[399443349,1766359843036,-500.0,7.607e-05,2]
[399443351,1766359843045,-500.0,7.607e-05,2]
[399443353,1766359843054,-500.0,7.607e-05,2]
[399443355,1766359843063,-500.0,7.607e-05,2]
[399443358,1766359843072,-500.0,7.607e-05,2]
[399443361,1766359843082,-500.0,7.607e-05,2]
[399443364,1766359843091,-500.0,7.607e-05,2]
[399443367,1766359843100,-500.0,7.607e-05,2]
[399443370,1766359843109,-204.20449509,7.607e-05,2]
[399443373,1766359843118,-500.0,7.607e-05,2]
[399443376,1766359843128,-375.64288227,7.607e-05,2]
[399443379,1766359843137,-500.0,7.607e-05,2]
[399443381,1766359843146,-500.0,7.607e-05,2]
[399443383,1766359843155,-499.99,7.607e-05,2]
[399443385,1766359843164,-500.0,7.607e-05,2]
[399443387,1766359843173,-500.0,7.607e-05,2]
[399443389,1766359843182,-500.0,7.607e-05,2]
[399443391,1766359843191,-500.0,7.607e-05,2]
[399443393,1766359843200,-312.76104546,7.607e-05,2]
[399443395,1766359843210,-574.12855637,7.607e-05,2]
[399443397,1766359843219,-7875.58509633,7.607e-05,2]
[399443399,1766359843229,-13567.68855963,7.608e-05,2]
[399443405,1766359843274,-290546.83648174,7.608e-05,2]
[399443407,1766359843284,-3939.1737244,7.608e-05,2]
[399443409,1766359843293,-1151.94,7.751e-05,2]
[399443411,1766359843303,-446.28621122,7.768e-05,2]
[399443413,1766359843312,-174.179,7.867e-05,2]
[399443415,1766359843322,-341.01697583,7.893e-05,2]
[399443417,1766359843332,-1129.25493362,7.901e-05,2]
[399443419,1766359843341,-153.70867725,7.945e-05,2]
[399443421,1766359843351,-2146.264636,8.059e-05,2]
[399443423,1766359843360,-50000.0,8.074e-05,2]
[399443425,1766359843369,-166.0,8.074e-05,2]
[399443427,1766359843378,-334.0,8.074e-05,2]
[399443429,1766359843387,-334.0,8.074e-05,2]
[399443431,1766359843396,-334.0,8.074e-05,2]
[399443433,1766359843406,-334.0,8.074e-05,2]
[399443435,1766359843415,-334.0,8.074e-05,2]
[399443437,1766359843424,-334.0,8.074e-05,2]
[399443439,1766359843434,-334.0,8.074e-05,2]
[399443441,1766359843443,-334.0,8.074e-05,2]
[399443443,1766359843453,-334.0,8.074e-05,2]
[399443445,1766359843462,-334.0,8.074e-05,2]
[399443447,1766359843471,-334.0,8.074e-05,2]
[399443449,1766359843480,-334.0,8.074e-05,2]
[399443451,1766359843489,-334.0,8.074e-05,2]
[399443453,1766359843499,-334.0,8.074e-05,2]
[399443455,1766359843508,-334.0,8.074e-05,2]
[399443457,1766359843517,-334.0,8.074e-05,2]
[399443459,1766359843526,-334.0,8.074e-05,2]
[399443489,1766359843799,-334.0,8.074e-05,2]
[399443491,1766359843810,-334.0,8.074e-05,2]
[399443493,1766359843819,-334.0,8.074e-05,2]
[399443495,1766359843829,-334.0,8.074e-05,2]
[399443497,1766359843838,-334.0,8.074e-05,2]
[399443499,1766359843847,-334.0,8.074e-05,2]
[399443501,1766359843856,-334.0,8.074e-05,2]
[399443503,1766359843866,-334.0,8.074e-05,2]
[399443505,1766359843875,-334.0,8.074e-05,2]
[399443507,1766359843884,-334.0,8.074e-05,2]
[399443509,1766359843893,-334.0,8.074e-05,2]
[399443511,1766359843903,-334.0,8.074e-05,2]
[399443513,1766359843912,-282.39020812,8.074e-05,2]
[399443515,1766359843921,-166.0,8.074e-05,2]
[399443517,1766359843936,-166.0,8.074e-05,2]
[399443519,1766359843945,-163.0,8.074e-05,2]
[399443521,1766359843954,-152.0,8.074e-05,2]
[399443524,1766359843964,-166.0,8.074e-05,2]
[399443525,1766359843974,-163.0,8.074e-05,2]
[399443528,1766359843983,-152.0,8.074e-05,2]
[399443529,1766359843992,-166.0,8.074e-05,2]
[399443531,1766359844002,-163.0,8.074e-05,2]
[399443534,1766359844013,-152.0,8.074e-05,2]
[399443535,1766359844023,-172.0,8.074e-05,2]
[399443538,1766359844033,-152.0,8.074e-05,2]
[399443539,1766359844043,-221.85040198,8.074e-05,2]
[399443542,1766359844052,-166.0,8.074e-05,2]
[399443544,1766359844062,-152.0,8.074e-05,2]
[399443546,1766359844071,-166.0,8.074e-05,2]
[399443547,1766359844083,-152.0,8.074e-05,2]
[399443549,1766359844092,-152.0,8.074e-05,2]
[399443552,1766359844102,-166.0,8.074e-05,2]
[399443554,1766359844111,-152.0,8.074e-05,2]
[399443555,1766359844121,-295.3853916,8.074e-05,2]
[399443558,1766359844131,-166.0,8.074e-05,2]
[399443559,1766359844140,-166.0,8.074e-05,2]
[399443561,1766359844150,-166.0,8.074e-05,2]
[399443563,1766359844159,-172.0,8.074e-05,2]
[399443565,1766359844168,-152.0,8.074e-05,2]
[399443568,1766359844178,-152.0,8.074e-05,2]
[399443570,1766359844187,-152.0,8.074e-05,2]
[399443572,1766359844197,-152.0,8.074e-05,2]
[399443574,1766359844207,-152.0,8.074e-05,2]
[399443576,1766359844217,-152.0,8.074e-05,2]
[399443578,1766359844227,-157.20273873,8.074e-05,2]
[399443580,1766359844237,-2303.89,8.12e-05,2]
[399443582,1766359844246,-574.12855637,8.155e-05,2]
[399443584,1766359844256,-582.73623971,8.219e-05,2]
[399443586,1766359844267,-500.0,8.219e-05,2]
[399443588,1766359844276,-500.0,8.292e-05,2]
[399443590,1766359844288,-500.0,8.356e-05,2]
[399443592,1766359844297,-420.0,8.367e-05,2]
[399443594,1766359844307,-1680.0,8.367e-05,2]
[399443596,1766359844316,-1220.0,8.368e-05,2]
[399443598,1766359844325,-151.0,8.488e-05,2]
[399443600,1766359844334,-420.657612,8.488e-05,2]
[399443602,1766359844343,-420.657612,8.488e-05,2]
[399443604,1766359844352,-420.657612,8.488e-05,2]
[399443606,1766359844361,-420.657612,8.488e-05,2]
[399443608,1766359844370,-3455.83,8.49e-05,2]
[399443610,1766359844380,-300.0,8.493e-05,2]
[399443612,1766359844389,-300.0,8.493e-05,2]
[399443614,1766359844397,-300.0,8.493e-05,2]
[399443616,1766359844406,-300.0,8.493e-05,2]
[399443618,1766359844415,-300.0,8.493e-05,2]
[399443620,1766359844425,-300.0,8.493e-05,2]
[399443622,1766359844434,-300.0,8.493e-05,2]
[399443624,1766359844443,-300.0,8.493e-05,2]
[399443626,1766359844452,-300.0,8.493e-05,2]
[399443628,1766359844463,-300.0,8.493e-05,2]
[399443630,1766359844474,-300.0,8.493e-05,2]
[399443632,1766359844483,-300.0,8.493e-05,2]
[399443634,1766359844493,-300.0,8.493e-05,2]
[399443636,1766359844502,-300.0,8.493e-05,2]
[399443638,1766359844511,-300.0,8.493e-05,2]
[399443640,1766359844521,-151.0,8.493e-05,2]
[399443642,1766359844531,-151.0,8.493e-05,2]
[399443644,1766359844540,-151.0,8.493e-05,2]
[399443646,1766359844549,-151.0,8.493e-05,2]
[399443648,1766359844558,-500.0,8.493e-05,2]
[399443650,1766359844567,-314.1794267,8.687e-05,2]
[399443652,1766359844576,-250.0,8.7e-05,2]
[399443654,1766359844586,-633.0,8.774e-05,2]
[399443656,1766359844595,-415.0,8.774e-05,2]
[399443658,1766359844604,-3939.1737244,8.788e-05,2]
[399443660,1766359844613,-250.0,8.8e-05,2]
[399443662,1766359844622,-4607.77,8.859e-05,2]
[399443664,1766359844633,-1090.15639072,8.861e-05,2]
[399443666,1766359844643,-255.54239637,8.864e-05,2]
[399443668,1766359844652,-250.0,8.9e-05,2]
[399443670,1766359844661,-250.0,9e-05,2]
[399443672,1766359844670,-1090.15639072,9.026e-05,2]
[399443674,1766359844679,-255.54239637,9.162e-05,2]
[399443676,1766359844689,-600.0,9.189e-05,2]
[399443678,1766359844699,-1090.15639072,9.191e-05,2]
[399443680,1766359844708,-587.0,9.203e-05,2]
[399443682,1766359844718,-2351.0,9.203e-05,2]
[399443684,1766359844727,-5759.72,9.228e-05,2]
[399443686,1766359844736,-322.26769974,9.3e-05,7]
[399443688,1766359844746,-1090.15639072,9.356e-05,2]
[399443690,1766359844755,-151.0,9.356e-05,2]
[399443692,1766359844764,-420.657612,9.356e-05,2]
[399443695,1766359844773,-420.657612,9.356e-05,2]
[399443696,1766359844782,-420.657612,9.356e-05,2]
[399443698,1766359844791,-420.657612,9.356e-05,2]
[399443700,1766359844801,-255.54239637,9.461e-05,2]
[399443702,1766359844810,-250.0,9.488e-05,2]
[399443705,1766359844820,-1090.15639072,9.521e-05,2]
[399443707,1766359844829,-381.12138874,9.57e-05,2]
[399443709,1766359844839,-151.0,9.582e-05,2]
[399443711,1766359844848,-151.0,9.582e-05,2]
[399443713,1766359844857,-151.0,9.582e-05,2]
[399443715,1766359844866,-151.0,9.582e-05,2]
[399443717,1766359844876,-6911.66,9.597e-05,2]
[399443719,1766359844885,-1090.15639072,9.686e-05,2]
[399443721,1766359844893,-500.0,9.726e-05,2]
[399443723,1766359844903,-255.54239637,9.759e-05,2]
[399443725,1766359844912,-1091.24654712,9.852e-05,2]
[399443726,1766359844921,-8063.6,9.966e-05,2]
[399443729,1766359844932,-3939.1737244,9.969e-05,2]
[399443731,1766359844944,-1724.42443585,0.0001,2]
[399443733,1766359844953,-1726.14886028,0.0001,2]
[399443734,1766359844962,-1569.2107168,0.0001,2]
[399443736,1766359844971,-1569.2107168,0.0001,2]
[399443738,1766359844980,-1724.42443585,0.0001,2]
[399443740,1766359844990,-1724.42443585,0.0001,2]
[399443742,1766359844999,-415.3189487,0.0001,2]
[399443745,1766359845015,-1309.10548715,0.0001,2]
[399443747,1766359845024,-1724.42443585,0.0001,2]
[399443749,1766359845034,-1569.2107168,0.0001,2]
[399443751,1766359845043,-1724.42443585,0.0001,2]
[399443753,1766359845051,-1724.42443585,0.0001,2]
[399443755,1766359845060,-1724.42443585,0.0001,2]
[399443757,1766359845070,-1724.42443585,0.0001,2]
[399443759,1766359845079,-151.0,0.0001,2]
[399443761,1766359845088,-151.0,0.0001,2]
[399443763,1766359845097,-151.0,0.0001,2]
[399443765,1766359845106,-267.239915,0.0001,2]
[399443767,1766359845115,-151.0,0.0001,2]
[399443769,1766359845125,-420.657612,0.0001,2]
[399443771,1766359845134,-420.657612,0.0001,2]
[399443773,1766359845143,-420.657612,0.0001,2]
[399443775,1766359845152,-420.657612,0.0001,2]
[399443777,1766359845161,-2734.94689896,0.0001,2]
[399443779,1766359845171,-151.0,0.0001,2]
[399443781,1766359845180,-151.0,0.0001,2]
[399443783,1766359845189,-151.0,0.0001,2]
[399443785,1766359845198,-151.0,0.0001,2]
[399443786,1766359845207,-151.0,0.0001,2]
[399443787,1766359845216,-151.0,0.0001,2]
[399443789,1766359845226,-151.0,0.0001,2]
[399443791,1766359845236,-151.0,0.0001,2]
[399443792,1766359845245,-151.0,0.0001,2]
[399443793,1766359845254,-151.0,0.0001,2]
[399443794,1766359845264,-151.0,0.0001,2]
[399443795,1766359845273,-151.0,0.0001,2]
[399443797,1766359845283,-151.0,0.0001,2]
[399443799,1766359845292,-151.0,0.0001,2]
[399443801,1766359845301,-151.0,0.0001,2]
[399443803,1766359845311,-151.0,0.0001,2]
[399443804,1766359845320,-151.0,0.0001,2]
[399443806,1766359845329,-151.0,0.0001,2]
[399443808,1766359845339,-151.0,0.0001,2]
[399443809,1766359845347,-151.0,0.0001,2]
[399443810,1766359845356,-151.0,0.0001,2]
[399443811,1766359845365,-255.79793876,0.00010057,2]
[399443812,1766359845375,-720.0,0.00010108,2]
[399443813,1766359845384,-823.0,0.00010124,2]
[399443814,1766359845393,-2358.0,0.00010124,2]
[399443815,1766359845403,-151.0,0.00010334,2]
[399443816,1766359845412,-420.657612,0.00010334,2]
[399443817,1766359845422,-420.657612,0.00010334,2]
[399443818,1766359845431,-420.657612,0.00010334,2]
[399443820,1766359845440,-420.657612,0.00010334,2]
[399443821,1766359845449,-8122.60396673,0.00010335,2]
[399443832,1766359901236,10000.01,7.508e-05,2]
[399443833,1766359901266,10000.01,7.508e-05,2]
[399443834,1766359901298,10000.01,7.508e-05,2]
[399443835,1766359901329,10000.01,7.508e-05,2]
[399443837,1766359927981,-300.0,7.507e-05,2]
[399443838,1766359928353,-6486.10814825,7.508e-05,2]
[399443839,1766359928476,-10000.01,7.508e-05,2]
[399443841,1766359956962,-10000.01,7.508e-05,2]
[399443842,1766359957072,-10000.01,7.508e-05,2]
[399443843,1766359957325,-10000.01,7.508e-05,2]
[399443844,1766359957455,-10000.01,7.508e-05,2]
[399443845,1766359957628,-10000.01,7.508e-05,2]
[399443856,1766360012827,-300.0,7.507e-05,2]
[399443857,1766360012849,-19.33428696,7.507e-05,2]
[399443858,1766360014857,-199.91796572,7.507e-05,2]
[399443859,1766360016821,-209.2122901,7.507e-05,2]
[399443860,1766360018247,-2.53545722,7.507e-05,2]
[399443861,1766360018276,-295.10314127,7.508e-05,2]
[399443862,1766360020575,-225.24738894,7.508e-05,2]
[399443863,1766360065057,5000.0,7.498e-05,2]
[399443864,1766360081042,5000.0,7.498e-05,2]
[399443865,1766360089879,0.01,7.498e-05,2]
[399443866,1766360089906,4999.99,7.498e-05,2]
[399443867,1766360106182,4912.5505153,7.498e-05,2]
[399443868,1766360114215,87.4694847,7.498e-05,2]
[399443869,1766360114246,4912.5305153,7.498e-05,2]
[399443870,1766360137088,5000.0,7.498e-05,2]
[399443871,1766360152855,87.4794847,7.498e-05,2]
[399443872,1766360166882,-5000.0,7.423e-05,2]
[399443874,1766360184435,0.01,7.497e-05,2]
[399443882,1766360247623,313.4309991,6.519e-05,2]
[399443890,1766360353170,800.0,0.00032877,60]
[399443891,1766360385565,151.0,9e-07,2]
[399443892,1766360386606,151.0,9e-07,2]
[399443893,1766360394968,606.52,0.00032877,60]
[399443894,1766360417798,-235.1273795,7.42e-05,2]
[399443898,1766360433331,3080.0,0.000328,60]
[399443927,1766360638585,-525.0,7.42e-05,2]
[399443928,1766360660187,-264.51246962,7.43e-05,2]
[399443929,1766360729929,500.0,0.00032877,60]
[399443930,1766360733196,-308.90211541,7.475e-05,2]
[399443931,1766360747904,-275.09166051,7.492e-05,2]
[399443932,1766360750158,-24.90833949,7.492e-05,2]
[399443933,1766360750181,-178.2935942,7.492e-05,2]
[399443934,1766360751597,-121.7064058,7.492e-05,2]
[399443935,1766360751619,-300.0,7.492e-05,2]
[399443936,1766360751642,-9.73514368,7.492e-05,2]
[399443937,1766360753953,-290.26485632,7.492e-05,2]
[399443938,1766360753976,-241.73514368,7.492e-05,2]
[399443939,1766360754936,-958.26485632,7.492e-05,2]
[399443940,1766360759498,-199.58608623,7.493e-05,2]
[399443941,1766360760455,5000.0,7.492e-05,2]
[399443942,1766360761622,-187.71605943,7.493e-05,2]
[399443943,1766360762201,300.0,7.492e-05,2]
[399443945,1766360779672,-4126.58541497,7.493e-05,2]
[399443946,1766360779701,-10000.01,7.493e-05,2]
[399443947,1766360779804,-968.46935511,7.493e-05,2]
[399443948,1766360779832,-8063.07128978,7.493e-05,2]
[399443949,1766360783443,2102.67904933,7.493e-05,2]
[399443951,1766360792222,5000.0,7.493e-05,2]
[399443952,1766360807999,500.0,7.492e-05,2]
[399443953,1766360809293,500.0,7.492e-05,2]
[399443954,1766360809596,152.20682147,7.492e-05,2]
[399443955,1766360815134,5000.0,7.493e-05,2]
[399443956,1766360818679,500.0,7.492e-05,2]